bitfinex-derivatives/quotes_SOLF0:USTF0_20250817
["timestamp","ask_amount","ask_price","bid_price","bid_amount"]
[1755423799244,7.93417127,191.76,191.61,3.02]
[1755423799536,3.04,191.7,191.61,3.02]
[1755423799736,3.9049992,191.69,191.61,3.02]
[1755423800038,3.04,191.75,191.61,3.02]
[1755423800232,3.04,191.73,191.59,5.11185591]
[1755423800438,3.04,191.71,191.6,3.02]
[1755423800636,3.04,191.69,191.6,3.02]
[1755423800840,3.04,191.67,191.6,3.02]
[1755423807339,3.04,191.67,191.61,3.02]
[1755423809336,3.04,191.74,191.61,3.02]
[1755423809534,3.04,191.72,191.61,3.02]
[1755423809936,3.04,191.7,191.61,3.02]
[1755423812546,3.04,191.7,191.64,3.02]
[1755423817748,3.04,191.74,191.64,3.02]
[1755423820254,3.04,191.72,191.64,3.02]
[1755423820751,3.04,191.72,191.62,3.02]
[1755423820752,11.77102271,191.71,191.62,3.02]
[1755423820949,3.04,191.71,191.62,3.02]
[1755423821951,2.09185591,191.72,191.62,3.02]
[1755423821952,3.87509718,191.7,191.62,3.02]
[1755423822153,3.04,191.69,191.62,3.02]
[1755423828060,5.13185591,191.69,191.55,0.90815381]
[1755423828261,23.58417127,191.76,191.55,0.90815381]
[1755423828262,2.92,191.65,191.56,2.82]
[1755423829468,4.8566347,191.64,191.56,2.82]
[1755423829764,2.92,191.63,191.56,2.82]
[1755423829959,3.87554662,191.62,191.51,2.82]
[1755423830168,2.92,191.6,191.51,2.82]
[1755423830362,8.71619627,191.59,191.51,2.82]
[1755423830561,2.92,191.6,191.51,4.91185591]
[1755423830755,2.92,191.58,191.52,2.82]
[1755423832071,2.92,191.62,191.52,2.82]
[1755423832370,2.92,191.6,191.52,2.82]
[1755423832664,7.75818305,191.59,191.52,2.82]
[1755423832869,2.92,191.59,191.52,2.82]
[1755423834071,2.92,191.61,191.52,2.82]
[1755423837371,4.84187007,191.6,191.52,2.82]
[1755423837576,2.92,191.61,191.54,2.09185591]
[1755423837866,2.92,191.61,191.55,2.82]
[1755423838463,2.92,191.65,191.56,2.09185591]
[1755423838665,4.84585809,191.64,191.57,2.82]
[1755423838865,2.92,191.65,191.57,2.82]
[1755423840370,353.46,191.68,191.59,2.09185591]
[1755423840576,11.6608884,191.67,191.6,2.82]
[1755423840873,7.77360006,191.66,191.6,2.82]
[1755423841072,2.92,191.66,191.6,2.82]
[1755423841378,4.85496636,191.65,191.6,2.82]
[1755423841673,2.92,191.66,191.6,2.82]
[1755423843576,2.92,191.69,191.6,2.82]
[1755423843773,8.75726092,191.68,191.6,2.82]
[1755423843967,8.75726092,191.67,191.6,2.82]
[1755423844167,4.86284885,191.66,191.6,2.82]
[1755423844470,2.92,191.68,191.6,2.82]
[1755423844673,2.92,191.71,191.63,2.82]
[1755423844875,8.75751781,191.7,191.63,2.82]
[1755423845076,4.86292436,191.69,191.63,2.82]
[1755423845278,2.92,191.71,191.63,2.82]
[1755423845465,8.75774335,191.7,191.63,2.82]
[1755423845668,2.92,191.71,191.63,2.82]
[1755423845864,4.86322273,191.7,191.63,2.82]
[1755423846168,2.92,191.71,191.63,2.82]
[1755423846374,4.86105975,191.7,191.63,2.82]
[1755423846575,2.92,191.69,191.63,2.82]
[1755423849978,2.92,191.69,191.64,2.09185591]
[1755423850182,2.92,191.69,191.65,2.82]
[1755423850877,2.92,191.69,191.66,2.82]
[1755423851074,2.92,191.68,191.67,2.82]
[1755423852581,129.16,191.77,191.67,2.82]
[1755423852781,2.92,191.75,191.67,2.82]
[1755423853078,2.92,191.73,191.67,2.82]
[1755423855584,2.92,191.73,191.67,4.91185591]
[1755423855781,2.92,191.73,191.68,2.82]
[1755423856178,2.92,191.78,191.68,2.82]
[1755423856387,2.92,191.76,191.68,2.82]
[1755423856587,2.92,191.74,191.63,2.82]
[1755423856883,2.92,191.72,191.63,2.82]
[1755423857080,2.92,191.72,191.62,2.09185591]
[1755423857281,2.92,191.7,191.63,2.82]
[1755423861579,2.92,191.72,191.68,2.9]
[1755423862181,2.92,191.74,191.68,2.9]
[1755423865584,350.58,191.79,191.7,2.09185591]
[1755423865788,8.70687455,191.78,191.71,2.9]
[1755423866091,2.92,191.76,191.7,2.09185591]
[1755423866288,3.88722668,191.75,191.66,2.9]
[1755423866591,2.92,191.75,191.68,2.9]
[1755423867989,2.92,191.83,191.7,2.09185591]
[1755423868186,2.92,191.81,191.74,2.9]
[1755423871997,129.2,191.85,191.76,2.09185591]
[1755423872202,2.92,191.8,191.77,2.9]
[1755423873089,129.08,191.87,191.77,2.9]
[1755423873295,2.92,191.81,191.77,2.9]
[1755423873696,2.92,191.86,191.77,2.9]
[1755423873994,2.92,191.84,191.77,2.9]
[1755423875295,2.92,191.86,191.77,2.9]
[1755423875496,2.92,191.84,191.77,2.9]
[1755423876191,2.92,191.84,191.79,2.09185591]
[1755423876395,2.92,191.84,191.8,2.9]
[1755423876599,2.92,191.86,191.8,2.9]
[1755423883401,7.72607205,191.85,191.8,2.9]
[1755423883599,350.42,191.91,191.8,2.9]
[1755423883792,2.92,191.89,191.8,2.9]
[1755423883989,2.92,191.87,191.8,2.9]
[1755423884202,7.72555896,191.86,191.8,2.9]
[1755423884404,4.80555896,191.85,191.8,2.9]
[1755423884592,2.92,191.86,191.8,2.9]
[1755423884994,2.92,191.84,191.81,2.9]
[1755423886003,2.92,191.84,191.77,2.09185591]
[1755423886197,2.92,191.84,191.78,2.9]
[1755423887498,2.87,191.82,191.79,2.9]
[1755423887805,2.87,191.8,191.7,2.9]
[1755423888004,4.80239265,191.79,191.7,2.9]
[1755423888198,2.87,191.78,191.7,2.9]
[1755423890301,2.87,191.78,191.72,2.09185591]
[1755423890502,2.87,191.78,191.73,2.9]
[1755423891604,2.87,191.84,191.73,2.9]
[1755423891808,2.87,191.82,191.73,2.9]
[1755423892004,2.87,191.8,191.73,2.9]
[1755423892306,2.87,191.78,191.73,2.9]
[1755423892502,131.11185591,191.85,191.73,2.9]
[1755423892706,2.87,191.77,191.73,2.9]
[1755423893310,2.87,191.76,191.73,2.9]
[1755423895208,2.87,191.77,191.73,2.9]
[1755423895802,2.87,191.77,191.74,2.9]
[1755423896115,2.87,191.77,191.73,2.9]
[1755423897103,2.87,191.76,191.73,2.9]
[1755423897306,2.87,191.84,191.73,2.9]
[1755423897506,2.87,191.82,191.69,2.09185591]
[1755423897704,8.69777208,191.81,191.7,2.9]
[1755423897903,2.87,191.79,191.7,2.9]
[1755423898907,2.87,191.79,191.65,350.36]
[1755423898908,2.87,191.79,191.73,2.9]
[1755423906714,2.87,191.86,191.76,2.9]
[1755423906932,2.87,191.84,191.76,2.9]
[1755423907213,8.7159253,191.83,191.78,2.09185591]
[1755423907411,2.87,191.83,191.79,2.9]
[1755423907619,2.87,191.85,191.79,2.9]
[1755423907915,2.87,191.88,191.79,2.9]
[1755423908118,2.87,191.86,191.79,2.9]
[1755423908311,8.72164007,191.85,191.79,2.9]
[1755423908511,2.87,191.85,191.82,2.9]
[1755423909107,2.87,191.89,191.82,2.9]
[1755423909306,8.72556329,191.88,191.84,2.09185591]
[1755423909616,2.87,191.88,191.85,2.9]
[1755423909816,2.87,191.87,191.86,2.9]
[1755423910005,350.42,191.91,191.86,2.9]
[1755423910211,2.87,191.89,191.85,2.9]
[1755423910618,2.87,191.87,191.82,2.9]
[1755423910914,2.87,191.85,191.79,2.9]
[1755423915623,8.7490952,191.84,191.79,2.9]
[1755423915828,2.87,191.83,191.79,2.9]
[1755423916014,2.87,191.83,191.75,2.09185591]
[1755423916213,2.09185591,191.9,191.75,2.09185591]
[1755423916418,2.87,191.88,191.79,2.9]
[1755423916610,2.87,191.86,191.79,2.9]
[1755423916814,8.74951527,191.85,191.79,2.9]
[1755423917015,2.87,191.85,191.79,2.9]
[1755423918118,5.84231536,191.92,191.81,2.09185591]
[1755423918324,3.0,191.9,191.82,3.06]
[1755423918515,3.0,191.88,191.82,3.06]
[1755423918716,8.74920121,191.87,191.82,3.06]
[1755423919019,3.0,191.85,191.82,3.06]
[1755423919719,3.0,191.85,191.81,2.09185591]
[1755423920024,2.09185591,191.93,191.82,3.06]
[1755423920215,3.0,191.86,191.82,3.06]
[1755423920724,3.0,191.92,191.82,3.06]
[1755423920925,3.0,191.9,191.82,3.06]
[1755423921222,3.0,191.88,191.82,3.06]
[1755423921428,3.0,191.86,191.82,3.06]
[1755423923228,3.0,191.93,191.82,3.06]
[1755423923413,3.0,191.91,191.82,3.06]
[1755423923622,3.0,191.89,191.82,3.06]
[1755423923816,8.72269631,191.88,191.82,3.06]
[1755423924016,3.0,191.86,191.82,3.06]
[1755423925820,3.0,191.88,191.82,3.06]
[1755423926823,3.0,191.88,191.68,128.98]
[1755423926824,3.0,191.95,191.85,3.06]
[1755423927025,3.0,191.93,191.85,3.06]
[1755423927321,3.0,191.91,191.85,3.06]
[1755423927523,8.72306401,191.9,191.85,3.06]
[1755423927725,3.0,191.89,191.85,3.06]
[1755423929426,0.90711223,191.97,191.85,3.06]
[1755423929728,3.0,191.91,191.85,3.06]
[1755423930924,3.0,191.97,191.85,3.06]
[1755423931126,3.0,191.95,191.88,3.06]
[1755423931431,3.0,191.93,191.88,3.06]
[1755423931619,3.0,191.92,191.88,3.06]
[1755423931824,115.73964408,191.98,191.88,3.06]
[1755423932024,3.0,191.91,191.88,3.06]
[1755423932622,3.0,191.97,191.88,3.06]
[1755423932828,3.0,191.95,191.88,3.06]
[1755423933747,115.73964408,191.98,191.88,3.06]
[1755423933748,3.0,191.97,191.88,3.06]
[1755423933933,3.90583694,191.96,191.87,2.09185591]
[1755423934134,3.0,191.97,191.88,3.06]
[1755423934331,3.0,191.95,191.88,3.06]
[1755423935235,5.09185591,191.95,191.85,3.06]
[1755423935441,3.0,191.91,191.83,3.06]
[1755423937238,2.09185591,191.92,191.83,3.06]
[1755423937239,3.90521677,191.9,191.83,3.06]
[1755423937442,3.0,191.89,191.83,3.06]
[1755423939639,3.0,191.98,191.85,3.06]
[1755423939844,3.0,191.96,191.88,3.06]
[1755423940046,3.0,191.94,191.88,3.06]
[1755423943146,3.0,191.94,191.87,2.09185591]
[1755423943341,3.0,191.94,191.86,3.06]
[1755423944343,3.0,191.94,191.85,3.06]
[1755423944545,3.0,191.92,191.85,3.06]
[1755423944739,3.0,191.9,191.85,3.06]
[1755423945642,3.0,191.9,191.83,3.06]
[1755423948353,2.89,191.88,191.83,3.06]
[1755423951152,2.89,191.86,191.82,3.01]
[1755423951348,2.89,191.86,191.71,350.06]
[1755423951550,2.89,191.84,191.71,350.06]
[1755423951752,2.89,191.84,191.75,3.01]
[1755423952358,2.89,191.82,191.75,3.01]
[1755423955753,2.89,191.82,191.74,2.09185591]
[1755423955754,2.89,191.82,191.77,2.09185591]
[1755423955959,2.89,191.88,191.77,5.10185591]
[1755423956154,2.89,191.86,191.78,3.01]
[1755423956353,2.89,191.84,191.78,3.01]
[1755423958763,2.89,191.84,191.71,350.06]
[1755423958764,2.89,191.86,191.81,3.01]
[1755423958955,2.89,191.85,191.81,3.01]
[1755423959260,2.89,191.84,191.81,3.01]
[1755423959961,2.09185591,191.91,191.81,3.01]
[1755423960262,2.89,191.89,191.79,3.01]
[1755423960462,2.89,191.87,191.79,3.01]
[1755423960663,2.89,191.85,191.79,3.01]
[1755423960865,2.89,191.83,191.79,3.01]
[1755423961749,2.89,191.9,191.81,3.01]
[1755423961952,2.89,191.88,191.81,3.01]
[1755423962154,2.89,191.86,191.81,3.01]
[1755423962360,2.89,191.92,191.81,3.01]
[1755423962562,2.89,191.9,191.81,3.01]
[1755423962859,2.89,191.88,191.81,3.01]
[1755423963962,3.91069925,191.87,191.81,3.01]
[1755423964159,3.91028223,191.86,191.81,3.01]
[1755423964365,2.89,191.85,191.8,5.10185591]
[1755423964564,2.89,191.85,191.73,128.92]
[1755423964565,2.89,191.85,191.81,3.01]
[1755423964762,2.89,191.85,191.77,2.09185591]
[1755423964965,2.89,191.85,191.82,3.01]
[1755423965151,2.89,191.9,191.78,3.01]
[1755423965357,2.89,191.88,191.78,3.01]
[1755423965557,2.89,191.86,191.81,3.01]
[1755423966554,2.89,191.85,191.81,3.01]
[1755423970970,2.89,191.85,191.81,2.09185591]
[1755423971163,2.89,191.85,191.82,3.01]
[1755423972869,2.09185591,191.91,191.8,3.01]
[1755423973062,2.89,191.89,191.8,3.01]
[1755423973369,2.89,191.87,191.8,3.01]
[1755423973569,8.72221531,191.86,191.8,3.01]
[1755423973770,2.89,191.84,191.8,3.01]
[1755423973968,2.09185591,191.91,191.8,3.01]
[1755423974169,2.89,191.83,191.8,3.01]
[1755423974371,2.89,191.82,191.8,3.01]
[1755423975274,2.89,191.82,191.77,2.09185591]
[1755423975568,2.89,191.82,191.78,3.01]
[1755423976465,2.89,191.82,191.79,3.01]
[1755423977465,2.88,191.81,191.74,2.09185591]
[1755423977672,2.88,191.81,191.8,2.78]
[1755423982773,2.88,191.81,191.75,2.78]
[1755423986281,3.91260743,191.8,191.72,2.09185591]
[1755423986470,2.88,191.79,191.73,2.78]
[1755423986976,2.88,191.81,191.76,2.78]
[1755423987173,3.91247084,191.8,191.76,2.78]
[1755423987481,2.88,191.86,191.76,2.78]
[1755423987682,2.88,191.84,191.76,2.78]
[1755423987880,8.74281084,191.83,191.76,2.78]
[1755423988079,2.88,191.81,191.76,2.78]
[1755423988275,2.88,191.87,191.76,2.78]
[1755423988478,2.88,191.85,191.76,2.78]
[1755423988783,2.88,191.83,191.76,2.78]
[1755423988978,2.88,191.81,191.76,2.78]
[1755423990975,3.91797918,191.8,191.76,2.78]
[1755423991284,2.88,191.78,191.76,2.78]
[1755423991782,5.84231536,191.86,191.76,2.78]
[1755423991980,2.88,191.84,191.76,2.78]
[1755423992287,2.88,191.82,191.74,2.78]
[1755423992485,2.88,191.8,191.74,2.78]
[1755423992679,8.7522011,191.79,191.74,2.78]
[1755423992984,2.88,191.77,191.74,2.78]
[1755423993182,2.88,191.76,191.7,2.09185591]
[1755423993387,2.88,191.76,191.68,2.78]
[1755423994984,2.88,191.76,191.7,2.09185591]
[1755423995186,2.88,191.76,191.71,2.78]
[1755423996186,2.88,191.74,191.71,2.78]
[1755423996382,5.84231536,191.84,191.71,2.78]
[1755423996688,2.88,191.82,191.71,2.78]
[1755423996986,2.88,191.8,191.71,2.78]
[1755423997186,2.88,191.78,191.71,2.78]
[1755423997486,3.91390553,191.77,191.71,2.78]
[1755423997688,2.88,191.76,191.71,2.78]
[1755423997887,2.88,191.75,191.71,2.78]
[1755423998380,2.88,191.81,191.71,2.78]
[1755423998581,2.88,191.79,191.71,2.78]
[1755423998782,2.88,191.77,191.71,2.78]
[1755424008199,3.05,191.8,191.73,2.09185591]
[1755424008398,3.05,191.8,191.74,3.03]
[1755424008899,3.05,191.87,191.74,3.03]
[1755424009096,3.05,191.85,191.76,2.09185591]
[1755424009295,3.05,191.83,191.77,3.03]
[1755424009490,8.7291567,191.82,191.77,3.03]
[1755424009702,6.95543935,191.81,191.77,3.03]
[1755424009893,3.05,191.81,191.77,3.03]
[1755424010601,7.93417127,191.89,191.77,3.03]
[1755424010896,3.05,191.87,191.73,2.09185591]
[1755424011097,27.10362723,191.88,191.74,3.03]
[1755424011098,2.09185591,191.83,191.74,3.03]
[1755424011299,3.05,191.81,191.74,3.03]
[1755424011499,3.05,191.79,191.74,3.03]
[1755424011704,3.05,191.77,191.74,3.03]
[1755424011902,3.05,191.77,191.7,2.09185591]
[1755424012202,3.05,191.77,191.73,3.03]
[1755424012399,3.05,191.77,191.74,3.03]
[1755424016807,3.05,191.77,191.68,2.09185591]
[1755424017007,3.05,191.77,191.75,3.03]
[1755424017403,3.05,191.77,191.74,3.03]
[1755424017801,3.05,191.77,191.75,3.03]
[1755424019107,3.05,191.83,191.71,2.09185591]
[1755424019304,3.05,191.81,191.74,2.09185591]
[1755424019604,3.91028766,191.8,191.75,3.03]
[1755424019805,3.05,191.83,191.77,2.09185591]
[1755424020112,8.73933762,191.82,191.78,3.03]
[1755424020311,350.32,191.88,191.78,3.03]
[1755424020312,3.9121582,191.81,191.78,3.03]
[1755424020511,3.05,191.84,191.78,3.03]
[1755424020705,11.78144455,191.83,191.78,3.03]
[1755424020905,8.73144455,191.82,191.78,3.03]
[1755424021105,3.904309,191.81,191.78,3.03]
[1755424021513,3.05,191.87,191.81,3.03]
[1755424021709,4.82827921,191.86,191.83,2.09185591]
[1755424021915,2.09185591,191.94,191.84,3.03]
[1755424022214,3.05,191.88,191.84,3.03]
[1755424022414,4.82658587,191.87,191.84,3.03]
[1755424023415,3.05,191.91,191.84,3.03]
[1755424023616,4.82671268,191.9,191.84,3.03]
[1755424023918,3.05,191.91,191.84,3.03]
[1755424027520,5.14185591,191.91,191.81,3.03]
[1755424027722,3.05,191.89,191.81,3.03]
[1755424027922,6.90639066,191.88,191.81,3.03]
[1755424028225,3.05,191.86,191.81,3.03]
[1755424028926,3.05,191.86,191.82,3.03]
[1755424029628,3.05,191.86,191.77,3.03]
[1755424031731,3.05,191.84,191.77,3.03]
[1755424032629,3.05,191.89,191.82,2.09185591]
[1755424032928,3.05,191.89,191.83,3.03]
[1755424033123,4.81952556,191.88,191.83,3.03]
[1755424033319,3.05,191.87,191.84,3.03]
[1755424036132,3.05,191.87,191.8,2.09185591]
[1755424036332,3.05,191.87,191.85,3.03]
[1755424036830,3.05,191.86,191.85,3.03]
[1755424039519,2.95,191.92,191.85,3.03]
[1755424039717,11.64453894,191.91,191.85,3.03]
[1755424040025,2.95,191.91,191.85,3.03]
[1755424041932,2.95,191.89,191.81,2.8]
[1755424043933,2.95,191.94,191.81,2.8]
[1755424044134,2.95,191.92,191.81,2.8]
[1755424044330,2.95,191.9,191.81,2.8]
[1755424047936,2.95,191.94,191.81,2.8]
[1755424048138,2.95,191.92,191.81,2.8]
[1755424048336,2.09185591,191.95,191.81,2.8]
[1755424048337,11.62759099,191.91,191.81,2.8]
[1755424048538,2.95,191.91,191.81,2.8]
[1755424051235,8.67213737,191.9,191.81,2.8]
[1755424051435,2.95,191.89,191.81,2.8]
[1755424058047,2.95,191.87,191.81,2.8]
[1755424058739,2.95,191.87,191.78,4.89185591]
[1755424058936,3.87858813,191.86,191.79,2.8]
[1755424059242,2.95,191.87,191.79,2.8]
[1755424059547,2.95,191.85,191.79,2.8]
[1755424063151,2.95,191.88,191.79,2.8]
[1755424063343,2.95,191.86,191.79,2.8]
[1755424063548,11.64640569,191.85,191.79,2.8]
[1755424063745,2.95,191.85,191.79,2.8]
[1755424077961,2.81,191.83,191.79,2.78]
[1755424078159,2.81,191.81,191.79,2.78]
[1755424078459,2.81,191.81,191.75,2.09185591]
[1755424078460,7.93417127,191.89,191.8,2.78]
[1755424078662,8.71117247,191.88,191.8,2.78]
[1755424078858,8.71117247,191.87,191.8,2.78]
[1755424079057,7.93417127,191.89,191.8,2.78]
[1755424079058,2.81,191.85,191.8,2.78]
[1755424079360,8.71117247,191.84,191.8,2.78]
[1755424079549,8.71117247,191.83,191.76,2.78]
[1755424079749,2.81,191.83,191.76,2.78]
[1755424080864,3.89477363,191.82,191.76,2.78]
[1755424081062,2.81,191.82,191.76,2.78]
[1755424082965,2.81,191.8,191.76,2.78]
[1755424083265,2.81,191.8,191.72,2.09185591]
[1755424083469,2.81,191.8,191.78,2.78]
[1755424083765,2.81,191.8,191.77,2.78]
[1755424083967,2.81,191.85,191.77,2.78]
[1755424084267,2.81,191.83,191.77,2.78]
[1755424084563,2.81,191.81,191.77,2.78]
[1755424084863,2.81,191.85,191.77,2.78]
[1755424085059,2.81,191.83,191.77,2.78]
[1755424085253,2.81,191.81,191.77,2.78]
[1755424085459,2.81,191.87,191.78,2.09185591]
[1755424085664,11.51162779,191.86,191.79,2.78]
[1755424085861,8.70162779,191.85,191.79,2.78]
[1755424086067,2.81,191.86,191.82,2.78]
[1755424086263,8.70194213,191.85,191.83,2.78]
[1755424086460,5.84231536,191.92,191.83,2.78]
[1755424086661,2.81,191.9,191.83,2.78]
[1755424086860,2.81,191.88,191.79,2.78]
[1755424087061,2.81,191.86,191.79,2.78]
[1755424087256,8.70215982,191.85,191.79,2.78]
[1755424087464,8.70215982,191.84,191.75,2.09185591]
[1755424087765,3.89129097,191.83,191.81,2.78]
[1755424087963,2.81,191.86,191.81,2.78]
[1755424088164,3.89111882,191.85,191.82,2.78]
[1755424088465,2.81,191.85,191.82,2.78]
[1755424088667,2.81,191.87,191.82,2.78]
[1755424088866,8.70152808,191.86,191.83,2.78]
[1755424089067,2.81,191.84,191.83,2.78]
[1755424089756,2.81,191.89,191.78,2.78]
[1755424089963,2.81,191.82,191.78,2.78]
[1755424090161,2.81,191.81,191.78,2.78]
[1755424090361,2.09185591,191.9,191.76,2.09185591]
[1755424090362,7.93417127,191.9,191.76,2.09185591]
[1755424090558,2.81,191.88,191.77,2.78]
[1755424090762,8.66614109,191.87,191.77,2.78]
[1755424090964,2.81,191.85,191.77,2.78]
[1755424091167,8.66614109,191.84,191.77,2.78]
[1755424091367,2.81,191.82,191.77,2.78]
[1755424091969,2.81,191.89,191.77,2.78]
[1755424092158,2.81,191.87,191.77,2.78]
[1755424092361,2.81,191.85,191.77,2.78]
[1755424092562,2.81,191.83,191.77,2.78]
[1755424094764,3.85670675,191.82,191.73,2.09185591]
[1755424094963,2.09185591,191.87,191.73,2.09185591]
[1755424095166,2.81,191.85,191.74,2.78]
[1755424095364,2.81,191.83,191.74,2.78]
[1755424095569,6.66670675,191.82,191.74,2.78]
[1755424095769,2.81,191.86,191.74,2.78]
[1755424095958,2.81,191.84,191.74,2.78]
[1755424096164,2.81,191.82,191.74,2.78]
[1755424098468,8.66702848,191.81,191.74,2.78]
[1755424098672,2.95,191.8,191.74,2.78]
[1755424108373,2.95,191.8,191.7,3.07]
[1755424108582,2.95,191.78,191.7,3.07]
[1755424109278,2.95,191.78,191.72,3.07]
[1755424117282,2.95,191.8,191.72,2.09185591]
[1755424117485,2.95,191.8,191.73,3.07]
[1755424118079,8.66902896,191.79,191.73,3.07]
[1755424118277,2.95,191.78,191.73,3.07]
[1755424118486,3.854207,191.77,191.73,3.07]
[1755424118690,2.95,191.76,191.73,3.07]
[1755424119092,2.95,191.76,191.69,3.07]
[1755424119884,2.95,191.76,191.71,2.09185591]
[1755424120180,2.95,191.78,191.72,3.07]
[1755424120685,5.84231536,191.86,191.72,3.07]
[1755424120992,2.95,191.8,191.75,3.07]
[1755424121388,2.95,191.79,191.75,3.07]
[1755424121580,5.84231536,191.87,191.75,3.07]
[1755424121581,2.95,191.86,191.75,3.07]
[1755424121891,2.95,191.84,191.75,3.07]
[1755424122088,2.95,191.82,191.75,3.07]
[1755424122288,8.66425657,191.81,191.75,3.07]
[1755424122484,2.95,191.79,191.72,2.09185591]
[1755424122692,2.95,191.79,191.76,3.07]
[1755424123088,2.95,191.85,191.73,3.07]
[1755424123295,2.95,191.83,191.73,3.07]
[1755424123494,2.95,191.81,191.73,3.07]
[1755424123695,2.95,191.79,191.73,3.07]
[1755424129594,7.93417127,191.86,191.73,3.07]
[1755424129799,2.87,191.84,191.76,2.81]
[1755424130001,2.87,191.82,191.76,2.81]
[1755424130299,2.87,191.8,191.76,2.81]
[1755424130899,2.87,191.79,191.76,2.81]
[1755424131897,2.87,191.88,191.76,2.81]
[1755424132095,2.87,191.86,191.76,2.81]
[1755424132294,2.87,191.84,191.76,2.81]
[1755424132493,2.87,191.82,191.76,2.81]
[1755424132695,7.69177323,191.81,191.76,2.81]
[1755424133004,2.87,191.81,191.76,2.81]
[1755424133303,2.87,191.8,191.76,2.81]
[1755424133797,5.84231536,191.88,191.76,2.81]
[1755424134004,2.87,191.79,191.76,2.81]
[1755424134594,2.87,191.78,191.76,2.81]
[1755424137005,2.87,191.78,191.66,2.81]
[1755424142413,2.87,191.86,191.66,2.81]
[1755424142613,2.87,191.84,191.66,2.81]
[1755424142814,2.87,191.82,191.66,2.81]
[1755424143002,2.87,191.8,191.66,2.81]
[1755424146517,2.87,191.78,191.66,2.81]
[1755424149018,2.87,191.76,191.66,2.81]
[1755424159032,2.82,191.8,191.68,2.87]
[1755424160928,2.82,191.82,191.68,2.87]
[1755424163938,2.82,191.82,191.7,2.87]
[1755424165439,2.82,191.82,191.72,2.87]
[1755424170344,2.82,191.92,191.72,2.87]
[1755424170547,2.82,191.9,191.72,2.87]
[1755424170744,2.82,191.88,191.72,2.87]
[1755424170945,2.82,191.86,191.72,2.87]
[1755424173641,2.82,191.95,191.72,2.87]
[1755424173842,2.82,191.93,191.73,2.87]
[1755424174041,2.82,191.93,191.74,62.0]
[1755424174243,2.82,191.93,191.75,2.87]